Cogmind - Beta 12 *** ADVENTURER MODE // 2023.10.11 @ 21:13:07 // Winter2019/RPGLIKE Player: Noname Result: Escaped! Performance ------------- Evolutions (9) 4500 Regions Visited (18) 3600 Robots Destroyed (123) 615 Value Destroyed (5220) 5220 Prototype IDs (63) 1260 Alien Tech Used (0) 0 Bonus (5160) 5160 TOTAL SCORE: 20355 Bonus ------- Follower Combat Kills 1386 Entered DSFs 500 Aligned with FarCom 300 Win 3000 Friendly Fire -26 Cogmind --------- Core Integrity 444/1200 Matter 382/400 Energy 296/300 System Corruption 7% Temperature Cool (8) Movement Flying (27) Location To Epsilon Eridani Parts ------- > --- POWER (2) -------- Micro Antimatter Reactor Micro Antimatter Reactor > --- PROPULSION (5) --- Nuclear Pulse Array Electron Diverter Electron Diverter Electron Diverter > --- UTILITY (8) ------ Advanced Trap Scanner Triangulator Experimental Terrain Scanner Improved Transmission Jammer Advanced ECM Suite Improved Cloaking Device Advanced Hacking Suite Experimental System Shield > --- WEAPON (3) ------- Improved KE Penetrator Hypervelocity Railgun Phasing Sabre > --- INVENTORY (7) ---- Advanced Power Amplifier Advanced Reaction Control System Improved Phase Shifter Graphene Brace Beam Splitter Advanced Force Field Advanced Datajack Peak State ------------ > --- POWER ------------ Micro Antimatter Reactor Micro Antimatter Reactor > --- PROPULSION ------- Nuclear Pulse Array Electron Diverter Electron Diverter Electron Diverter > --- UTILITY ---------- Advanced Trap Scanner Experimental Terrain Scanner Improved Transmission Jammer Advanced ECM Suite Improved Cloaking Device Beam Splitter Advanced Hacking Suite Experimental System Shield > --- WEAPON ----------- Improved KE Penetrator Advanced Datajack Phasing Sabre > --- INVENTORY -------- Advanced Power Amplifier Advanced Reaction Control System Improved Phase Shifter Graphene Brace Improved Force Field Advanced Hacking Suite Hypervelocity Railgun [Rating: 136] Favorites ----------- Power Micro Antimatter Reactor Engine Light Angular Momentum Engine Power Core Micro Nuclear Core Reactor Micro Antimatter Reactor Propulsion Q-thruster Leg Aluminum Leg Wheel Wheel Flight Unit Q-thruster Utility Advanced Hacking Suite Device Triangulator Processor Improved Signal Interpreter Hackware Advanced Hacking Suite Protection Improved Propulsion Shielding Weapon Phasing Sabre Energy Gun Heavy EM Pulse Gun Ballistic Gun Improved KE Penetrator Special Weapon Remote Datajack Impact Weapon Great Maul Slashing Weapon Phasing Sabre Piercing Weapon Heavy Pick Special Melee Weapon Advanced Datajack Build | -11 -10 -10 -10 -9 -8 -7 -7 -7 -7 -6 -5 -5 -4 -4 -3 -2 -2 -1 ------- Run | Jun Mat Min Exi Min Mat Fac Was Fac Sto Fac Fac Ext Fac Arm Res Res DSF Acc Slots Evolved 14 | 3 . 1 . 1 5 . . . . . 1 1 1 . . . . 1 Power 1 | . . . . . . . . . . . 1 . . . . . . . Propulsion 4 | 1 . 1 . 1 . . . . . . . . 1 . . . . . Utility 7 | 1 . . . . 5 . . . . . . . . . . . . 1 Weapon 2 | 1 . . . . . . . . . . . 1 . . . . . . Parts Attached 271 | 3 9 2 . 2 19 22 3 7 7 26 26 30 19 32 32 9 2 21 Power 26 | . 2 1 . . 2 1 . . . 1 1 . 3 8 2 1 . 4 Engine 5 | . 2 . . . 1 . . . . . . . . 2 . . . . Core 8 | . . 1 . . 1 1 . . . 1 1 . 1 2 . . . . Reactor 13 | . . . . . . . . . . . . . 2 4 2 1 . 4 Propulsion 28 | 2 2 1 . 1 4 2 . . 2 2 2 . 3 . 1 2 . 4 Treads . | . . . . . . . . . . . . . . . . . . . Leg . | . . . . . . . . . . . . . . . . . . . Wheel 2 | 2 . . . . . . . . . . . . . . . . . . Hover . | . . . . . . . . . . . . . . . . . . . Flight 26 | . 2 1 . 1 4 2 . . 2 2 2 . 3 . 1 2 . 4 Utility 116 | . 3 . . 1 11 10 1 3 1 7 15 8 7 15 21 4 1 8 Device 86 | . 2 . . 1 4 5 . 1 . 6 13 5 4 13 19 4 1 8 Storage . | . . . . . . . . . . . . . . . . . . . Processor 10 | . 1 . . . 4 1 . 1 1 . . . 1 1 . . . . Hackware 7 | . . . . . . . . 1 . . 2 . 1 1 2 . . . Protection 13 | . . . . . 3 4 1 . . 1 . 3 1 . . . . . Artifact . | . . . . . . . . . . . . . . . . . . . Weapon 101 | 1 2 . . . 2 9 2 4 4 16 8 22 6 9 8 2 1 5 Energy Gun 15 | . 2 . . . . 5 1 . 1 3 1 . . . 2 . . . Energy Cannon . | . . . . . . . . . . . . . . . . . . . Ballistic Gun 37 | 1 . . . . . 1 1 . 1 4 2 12 3 5 4 1 . 2 Ballistic Cannon . | . . . . . . . . . . . . . . . . . . . Launcher . | . . . . . . . . . . . . . . . . . . . Special Weapon 5 | . . . . . . 2 . . . 1 1 . . . . . . 1 Impact Weapon 3 | . . . . . 1 1 . 1 . . . . . . . . . . Slashing Weapon 12 | . . . . . 1 . . 1 . 2 . 5 1 . 1 1 . . Piercing Weapon 5 | . . . . . . . . . . 2 2 1 . . . . . . Special Melee Weapon 24 | . . . . . . . . 2 2 4 2 4 2 4 1 . 1 2 Unidentified Prototypes 22 | . . . . . 1 4 1 1 2 2 2 . 1 2 4 1 . 1 Parts Lost 1 | . . . . . . . . . . . 1 . . . . . . . Power . | . . . . . . . . . . . . . . . . . . . Propulsion . | . . . . . . . . . . . . . . . . . . . Utility 1 | . . . . . . . . . . . 1 . . . . . . . Weapon . | . . . . . . . . . . . . . . . . . . . Highest Loss Streak 1 | . . . . . . . . . . . 1 . . . . . . . To Critical Strikes . | . . . . . . . . . . . . . . . . . . . Average Slot Usage (%) 95 | . 98 100 100 100 98 98 99 100 100 99 89 93 93 93 93 94 94 93 Engine 1 | . 13 8 . . 1 . . . . . . . . 3 . . . . Core 4 | . . 3 12 11 5 6 7 7 7 6 8 12 9 1 . . . . Reactor 3 | . . . . . . . . . . . . . 1 5 10 11 11 11 Flight 25 | . 26 37 37 42 31 28 28 28 28 28 21 19 22 23 23 23 23 21 Device 24 | . 12 12 12 11 12 25 35 29 28 28 33 23 16 26 28 29 29 32 Processor 6 | . 13 12 12 11 21 15 7 7 7 7 6 6 5 2 . . . . Hackware 8 | . . . . . . . . 5 7 7 4 12 17 11 10 11 11 11 Protection 2 | . . . . . 7 7 6 7 7 7 . 2 . . . . . . Energy Gun 2 | . 26 25 25 22 2 6 6 1 . . . . . . . . . . Ballistic Gun 4 | . 1 . . . . . 7 3 . . . 7 7 9 5 7 7 6 Slashing Weapon 4 | . . . . . 7 . . 5 7 5 . 1 4 5 5 4 5 5 Special Melee Weapon 2 | . . . . . . . . 3 6 6 5 2 2 1 4 3 3 3 Naked Turns . | . . . . . . . . . . . . . . . . . . . Heaviest Build 50 | 8 13 12 12 13 30 33 33 27 19 23 28 32 42 50 42 42 42 43 Greatest Support 52 | 26 26 22 22 26 30 41 35 41 43 43 44 35 45 50 51 51 51 52 Greatest Overweight (x) 1 | . 1 1 . . . 1 . . . . . . . . . . . . Average Overweight (x) . | . . . . . . . . . . . . . . . . . . . Largest Inventory Capacity 7 | 4 4 4 4 4 4 6 6 6 6 7 7 7 7 7 7 7 7 7 Average Capacity 6 | 3 4 4 4 4 4 5 6 6 6 6 7 7 7 7 7 7 7 7 Most Carried 7 | 4 4 4 4 4 4 6 6 6 6 7 7 7 7 7 7 7 7 7 Average Carried 6 | 1 3 3 4 3 3 5 5 5 5 6 6 6 6 6 6 6 7 6 Final Capacity 7 | 4 4 4 4 4 4 6 6 6 6 7 7 7 7 7 7 7 7 7 Final Carried 7 | 4 4 4 4 4 4 6 6 6 6 7 7 7 7 7 7 7 7 7 Class Distribution -------------------- 27% | Wizard-Sprinter 27% | Wizard-Ninja 15% | Hacker-Ninja 11% | Sprinter 4% | Hacker-Scout 4% | Mutant 3% | Hacker-Mutant Dominant Class ---------------- Mutant | -10/Materials Sprinter | -10/Mines Sprinter | -10/Exiles Sprinter | -9/Mines Sprinter | -8/Materials Hacker-Mutant | -7/Factory Hacker-Scout | -7/Waste Hacker-Ninja | -7/Factory Hacker-Sprinter | -7/Storage Hacker-Ninja | -6/Factory Hacker-Ninja | -5/Factory Wizard-Sprinter | -5/Extension Wizard-Sprinter | -4/Factory Wizard-Sprinter | -4/Armory Wizard-Ninja | -3/Research Wizard-Ninja | -2/Research Wizard-Ninja | -2/DSF Wizard-Ninja | -1/Access Resources | -11 -10 -10 -10 -9 -8 -7 -7 -7 -7 -6 -5 -5 -4 -4 -3 -2 -2 -1 ----------- Run | Jun Mat Min Exi Min Mat Fac Was Fac Sto Fac Fac Ext Fac Arm Res Res DSF Acc Matter Collected 4051 | 230 90 20 . 20 180 198 109 76 106 254 311 485 395 575 457 60 . 485 Remotely . | . . . . . . . . . . . . . . . . . . . Salvage Created 5082 | . 256 56 . 26 732 221 . 50 59 338 134 735 393 1021 593 . . 468 Parts 300 | . 22 5 . 6 33 12 . 2 7 14 11 34 35 46 43 . . 30 Haulers Intercepted 1 | . . . . . . . . 1 . . . . . . . . . . Recyclers Shooed 1 | . . . . . . . . . . 1 . . . . . . . . Parts Field Recycled . | . . . . . . . . . . . . . . . . . . . Retrieved Matter . | . . . . . . . . . . . . . . . . . . . Parts Self-Destructed . | . . . . . . . . . . . . . . . . . . . Prevented . | . . . . . . . . . . . . . . . . . . . Kills | -11 -10 -10 -10 -9 -8 -7 -7 -7 -7 -6 -5 -5 -4 -4 -3 -2 -2 -1 ------- Run | Jun Mat Min Exi Min Mat Fac Was Fac Sto Fac Fac Ext Fac Arm Res Res DSF Acc Combat Hostiles Destroyed 83 | . 7 2 . 3 18 3 . . 1 2 3 11 9 17 4 . . 3 Melee 34 | . . . . . 13 . . . 1 . 1 1 6 11 1 . . . Guns 40 | . 4 1 . 3 . 3 . . . 2 2 10 3 6 3 . . 3 AOE 2 | . 2 . . . . . . . . . . . . . . . . . Classes Destroyed 14 | . 3 . . . 1 1 . 1 . 1 . 1 . 3 2 . . 1 Worker 3 | . . . . . . . . . . . . . . . . . . 3 Builder 2 | . . . . . . . . . . . . 1 . . . . . 1 Tunneler 1 | . . . . . . . . . . . . . . . 1 . . . Hauler 1 | . . . . . . . . 1 . . . . . . . . . . Recycler 4 | . . . . . . . . . . 1 . . . . 2 . . 1 Watcher 29 | . 3 . . . 4 3 . . 2 2 1 2 2 2 6 . . 2 Swarmer 19 | . 3 . . 3 7 . . . . . 2 3 1 . . . . . Saboteur 2 | . . . . . . . . . . . . . . 2 . . . . Grunt 19 | . 4 2 . . 5 . . . . . . 2 3 3 . . . . Duelist 3 | . . . . . . . . . . . . . . 3 . . . . Protector 1 | . . . . . . . . . . . . . . 1 . . . . Sentry 20 | . . . . . 6 1 . . 1 . 1 3 3 5 . . . . Hunter 1 | . . . . . . . . . . . . . . . 1 . . . Programmer 17 | . . . . . . 2 . . . 2 . 2 2 3 3 . . 3 Thug 1 | . . . . . . . . . . . . 1 . . . . . . Best Kill Streak 5 | . 5 2 . 3 3 1 . 1 1 2 2 4 2 2 3 . . 2 Combat Bots Only 5 | . 5 2 . 3 3 1 . . 1 1 2 3 2 2 1 . . 2 Max Kills in Single Turn 2 | . 2 1 . 2 1 1 . 1 1 1 2 2 1 2 1 . . 1 Gunslinging 1 | . . . . 1 . . . . . . 1 . . 1 . . . . Exploded 2 | . 2 . . . . . . . . . . . . . . . . . Melee 1 | . . . . . 1 . . . 1 . 1 1 1 1 1 . . . Uniques/NPCs Destroyed . | . . . . . . . . . . . . . . . . . . . Combat | -11 -10 -10 -10 -9 -8 -7 -7 -7 -7 -6 -5 -5 -4 -4 -3 -2 -2 -1 -------- Run | Jun Mat Min Exi Min Mat Fac Was Fac Sto Fac Fac Ext Fac Arm Res Res DSF Acc Damage Taken 5119 | . 176 110 . 45 694 196 . . 155 51 458 544 757 620 441 387 118 367 Core 3975 | . 140 88 . 35 459 122 . . 121 33 378 417 599 504 364 310 94 311 Absorbed by Shields 23 | . . . . . . . . . . . . 23 . . . . . . Redirected to Core 3030 | . 121 66 . 30 330 89 . . 52 21 279 311 523 376 259 275 94 204 Redirected to Shielding 27 | . . . . . . . . . 16 11 . . . . . . . . Regen/Repaired (Parts) 165 | . . . . . . . . 134 22 . 9 . . . . . . . Core Remaining (%) 84 | 100 . . . 100 99 . . . 100 96 . 100 . 85 81 . 45 37 Volleys Fired 170 | . 15 8 . 4 1 31 3 4 . 5 4 23 11 28 14 7 . 12 Largest 2 | . 2 2 . 2 1 2 2 2 . 2 2 2 2 2 2 2 . 2 Hottest 114 | . 90 90 . 90 45 83 53 114 . 66 66 66 66 66 66 73 . 73 Shots Fired 306 | . 30 16 . 8 1 36 5 7 . 8 6 45 19 59 28 14 . 24 Gun 297 | . 30 16 . 8 1 31 5 7 . 6 4 45 19 59 28 14 . 24 Cannon . | . . . . . . . . . . . . . . . . . . . Launcher . | . . . . . . . . . . . . . . . . . . . Special 9 | . . . . . . 5 . . . 2 2 . . . . . . . Kinetic 211 | . . . . . . 5 3 4 . 6 4 45 19 59 28 14 . 24 Thermal 31 | . . . . . . 26 2 3 . . . . . . . . . . Explosive . | . . . . . . . . . . . . . . . . . . . Electromagnetic 55 | . 30 16 . 8 1 . . . . . . . . . . . . . Robot Hit Streak 75 | . 9 21 . 4 5 9 13 2 . 7 13 23 11 59 75 16 . 39 Robot Miss Streak 2 | . 1 2 . 1 . 2 . 2 . . . 1 1 . 1 . . . Penetration Max 1 | . . . . . . . . . . . . 1 1 1 . . . . Secondary Targets 9 | . 3 . . 1 . . . . . . 1 1 . 2 . . . 1 Max Gunslinging Chain 1 | . 1 . . 1 . . . . . . 1 1 . 1 . . . 1 Shots Hit Robots 541 | . 25 14 . 6 53 27 5 8 10 15 16 74 59 103 60 19 . 47 Core Hits 169 | . 10 3 . 3 16 18 . 1 2 5 5 24 20 30 17 4 . 11 Critical Kills 2 | . . . . . . . . . . . . . . . 1 . . 1 Critical Parts Destroyed 23 | . . . . . 4 . . . . . . 4 1 6 1 3 . 4 Critical Strikes 41 | . . . . . 4 1 . . . . 1 7 6 11 3 3 . 5 Burn 1 | . . . . . . 1 . . . . . . . . . . . . Destroy 21 | . . . . . . . . . . . . 4 1 6 2 3 . 5 Smash 4 | . . . . . 4 . . . . . . . . . . . . . Sever 14 | . . . . . . . . . . . . 3 5 5 1 . . . Impale 1 | . . . . . . . . . . . 1 . . . . . . . Melee Attacks 718 | . . . . . 108 6 . 21 29 49 34 38 108 103 93 31 . 98 Impact 36 | . . . . . 35 1 . . . . . . . . . . . . Slashing 564 | . . . . . 73 5 . 16 25 31 . 12 105 96 83 30 . 88 Piercing 49 | . . . . . . . . . . 14 33 2 . . . . . . Sneak Attacks 83 | . . . . . . . . 6 4 3 1 24 6 13 12 1 . 13 Combat Hostiles 7 | . . . . . . . . . . . . . 4 3 . . . . Follow-up Attacks 8 | . . . . . 8 . . . . . . . . . . . . . Damage Inflicted 17837 | . 584 277 . 85 1738 436 107 124 267 471 468 1817 2658 4356 2275 536 . 1638 Guns 7022 | . 446 215 . 85 28 436 107 52 . 185 89 1338 566 1772 791 317 . 595 Cannons . | . . . . . . . . . . . . . . . . . . . Explosions 200 | . 138 62 . . . . . . . . . . . . . . . . Melee 10615 | . . . . . 1710 . . 72 267 286 379 479 2092 2584 1484 219 . 1043 Ramming . | . . . . . . . . . . . . . . . . . . . Kinetic 5838 | . . . . . . 89 69 27 . 185 89 1338 566 1772 791 317 . 595 Thermal 610 | . 138 62 . . . 347 38 25 . . . . . . . . . . Explosive . | . . . . . . . . . . . . . . . . . . . Electromagnetic 774 | . 446 215 . 85 28 . . . . . . . . . . . . . Impact 1030 | . . . . . 1030 . . . . . . . . . . . . . Slashing 9064 | . . . . . 680 . . 72 267 144 . 479 2092 2584 1484 219 . 1043 Piercing 521 | . . . . . . . . . . 142 379 . . . . . . . Highest Corruption 9 | . . . . . . 1 1 1 2 . 1 3 1 9 . 4 4 7 Average Corruption 2 | . . . . . . 1 1 1 1 . 1 2 1 4 . 2 4 1 Corruption Purged . | . . . . . . . . . . . . . . . . . . . Corruption Blocked . | . . . . . . . . . . . . . . . . . . . Effects 76 | . . . . . . 2 1 1 5 . 1 6 11 33 . 5 1 10 Message Errors 17 | . . . . . . . . 1 2 . 1 1 2 6 . 1 . 3 Matter Fused 19 | . . . . . . 1 . . 2 . . 1 3 6 . 3 . 3 Heat Flow Errors 12 | . . . . . . . . . . . . 1 3 6 . . 1 1 Energy Discharges 7 | . . . . . . . 1 . . . . . 1 5 . . . . Data Loss (minor) 11 | . . . . . . 1 . . . . . 2 . 5 . . . 3 Data Loss (major) 4 | . . . . . . . . . 1 . . . . 2 . 1 . . Misfires 4 | . . . . . . . . . . . . . 1 3 . . . . Alerts 2 | . . . . . . . . . . . . 1 1 . . . . . Overload Shots . | . . . . . . . . . . . . . . . . . . . Overflow Damage 1211 | . 18 . . . 437 . . . 51 64 . . 29 197 132 11 . 272 Projectiles . | . . . . . . . . . . . . . . . . . . . Explosions 18 | . 18 . . . . . . . . . . . . . . . . . Melee 1193 | . . . . . 437 . . . 51 64 . . 29 197 132 11 . 272 Knockbacks 2 | . . . . . 2 . . . . . . . . . . . . . Impact 2 | . . . . . 2 . . . . . . . . . . . . . Kinetic . | . . . . . . . . . . . . . . . . . . . Secondary . | . . . . . . . . . . . . . . . . . . . Self-Inflicted Damage 100 | . 49 23 . . . 28 . . . . . . . . . . . . Shots 4 | . 2 1 . . . 1 . . . . . . . . . . . . Rammed . | . . . . . . . . . . . . . . . . . . . Targets Rammed . | . . . . . . . . . . . . . . . . . . . Kicked . | . . . . . . . . . . . . . . . . . . . Crushed . | . . . . . . . . . . . . . . . . . . . Highest Temperature 257 | . 228 257 . 174 18 30 . 58 . 6 . 222 203 249 5 12 201 192 Average Temperature 75 | . 91 113 . 91 9 14 . 28 . 6 . 50 90 78 3 5 158 62 Received Heat Transfer 1213 | . 57 81 . . 333 72 . . 30 18 45 178 231 129 30 . . 9 Effects 1 | . . 1 . . . . . . . . . . . . . . . . Energy Bleed 1 | . . 1 . . . . . . . . . . . . . . . . Siege Activations . | . . . . . . . . . . . . . . . . . . . Robots Corrupted 2 | . 1 1 . . . . . . . . . . . . . . . . Combat Hostiles 2 | . 1 1 . . . . . . . . . . . . . . . . Parts Fried 15 | . 2 2 . . 10 . . . . . . 1 . . . . . . Impact Corruptions 19 | . . . . . 19 . . . . . . . . . . . . . Robots Melted . | . . . . . . . . . . . . . . . . . . . Combat Hostiles . | . . . . . . . . . . . . . . . . . . . Parts Melted 2 | . . . . . . 1 . . . . . 1 . . . . . . Heat Transferred 1101 | . 150 100 . . . 740 74 37 . . . . . . . . . . Parts Sabotaged 3 | . . . . . . . . . . . . . . 3 . . . . Parts Stolen . | . . . . . . . . . . . . . . . . . . . Parts Stripped . | . . . . . . . . . . . . . . . . . . . Power Chain Reactions 4 | . 3 1 . . . . . . . . . . . . . . . . Missiles Intercepted . | . . . . . . . . . . . . . . . . . . . Alert | -11 -10 -10 -10 -9 -8 -7 -7 -7 -7 -6 -5 -5 -4 -4 -3 -2 -2 -1 ------- Run | Jun Mat Min Exi Min Mat Fac Was Fac Sto Fac Fac Ext Fac Arm Res Res DSF Acc Peak Influence 559 | . 294 100 . 70 239 169 6 559 491 218 115 127 269 234 217 132 9 214 Initial 217 | . . 31 . . 22 92 6 3 217 105 26 26 50 110 3 33 9 4 Average 80 | . 98 67 . 65 112 81 6 129 258 69 42 45 112 75 53 58 9 57 Maximum Alert Level 2 | . 1 . . . 1 . . 2 2 1 . . 1 1 1 . . 1 Low Security (%) 92 | 100 81 100 . 100 91 100 100 86 31 94 100 100 76 94 99 100 100 98 Level 1 7 | . 18 . . . 8 . . 2 54 5 . . 23 5 . . . 1 Level 2 . | . . . . . . . . 10 13 . . . . . . . . . Level 3 . | . . . . . . . . . . . . . . . . . . . Level 4 . | . . . . . . . . . . . . . . . . . . . Level 5 . | . . . . . . . . . . . . . . . . . . . High Security . | . . . . . . . . . . . . . . . . . . . Max Security . | . . . . . . . . . . . . . . . . . . . Squads Dispatched 53 | . . 1 . . 1 2 . 6 5 6 4 1 4 8 5 3 . 7 Investigation 20 | . . 1 . . 1 . . 4 1 3 4 . 2 . 2 2 . . Extermination 15 | . . . . . . 2 . 1 . 2 . . 2 3 2 1 . 2 Reinforcement 15 | . . . . . . . . 1 1 1 . 1 . 5 1 . . 5 Assault . | . . . . . . . . . . . . . . . . . . . Garrison 3 | . . . . . . . . . 3 . . . . . . . . . Intercept . | . . . . . . . . . . . . . . . . . . . Searches Triggered . | . . . . . . . . . . . . . . . . . . . Construction Impeded . | . . . . . . . . . . . . . . . . . . . Haulers Reinforced 1 | . . . . . . . . . 1 . . . . . . . . . Active Scanning Responses . | . . . . . . . . . . . . . . . . . . . Cargo Convoy Interrupts . | . . . . . . . . . . . . . . . . . . . Stealth | -11 -10 -10 -10 -9 -8 -7 -7 -7 -7 -6 -5 -5 -4 -4 -3 -2 -2 -1 --------- Run | Jun Mat Min Exi Min Mat Fac Was Fac Sto Fac Fac Ext Fac Arm Res Res DSF Acc Distress Signals 17 | . . . . . 1 3 . 1 . . . 2 . 5 2 . . 3 Communications Jammed 17 | . . . . . . . . 7 . . . . . . 10 . . . Distress Signals 11 | . . . . . . . . 7 . . . . . . 4 . . . Times Spotted 265 | . 12 4 . 3 36 18 . 8 12 8 9 30 24 39 38 9 2 13 Peak Tracking Total 9 | . 5 2 . 3 6 4 . 3 4 2 5 7 3 8 7 5 2 9 Tactical Retreats 40 | . 1 . . . 9 1 . . 1 1 . 6 1 8 4 2 2 4 Traps | -11 -10 -10 -10 -9 -8 -7 -7 -7 -7 -6 -5 -5 -4 -4 -3 -2 -2 -1 ------- Run | Jun Mat Min Exi Min Mat Fac Was Fac Sto Fac Fac Ext Fac Arm Res Res DSF Acc Traps Triggered 15 | . . . . . . 1 . . 1 1 2 3 1 1 1 2 1 1 Indirectly . | . . . . . . . . . . . . . . . . . . . Trap Hack Attempts 295 | . . . . . . . . 46 12 21 4 27 40 42 62 2 8 31 Triggered 3 | . . . . . . . . . . . . . . . 1 . . 2 Disarmed 31 | . . . . . . . . 1 3 . . 7 8 2 7 . 2 1 Reprogrammed 78 | . . . . . . . . 11 1 7 2 4 10 11 18 1 . 13 Reused 16 | . . . . . . . . 1 . 1 . 2 2 1 4 . . 5 Traps Extracted . | . . . . . . . . . . . . . . . . . . . Installed . | . . . . . . . . . . . . . . . . . . . Triggered 18 | . . . . . . . . 1 . 1 . 2 2 1 4 . . 7 Machines | -11 -10 -10 -10 -9 -8 -7 -7 -7 -7 -6 -5 -5 -4 -4 -3 -2 -2 -1 ---------- Run | Jun Mat Min Exi Min Mat Fac Was Fac Sto Fac Fac Ext Fac Arm Res Res DSF Acc Machines Disabled 18 | . 1 . . . . 1 . 5 4 . . . 2 5 . . . . Max in Single Turn 1 | . 1 . . . . 1 . . 1 . . . 1 1 . . . . Garrison Access 10 | . . . . . 1 . . . . 2 1 . 1 . 3 . . 2 Machines Repaired . | . . . . . . . . . . . . . . . . . . . Machines Sabotaged . | . . . . . . . . . . . . . . . . . . . Overloaded Fab Kills . | . . . . . . . . . . . . . . . . . . . Hacking | -11 -10 -10 -10 -9 -8 -7 -7 -7 -7 -6 -5 -5 -4 -4 -3 -2 -2 -1 --------- Run | Jun Mat Min Exi Min Mat Fac Was Fac Sto Fac Fac Ext Fac Arm Res Res DSF Acc Machines Accessed 134 | . 8 1 1 . 11 8 . 8 12 12 9 12 14 9 15 6 . 8 Terminals 90 | . 6 . . . 8 8 . 5 10 3 4 12 8 8 9 5 . 4 Fabricators 5 | . . . . . . . . . . 1 1 . 2 . 1 . . . Repair Stations 3 | . . . . . . . . 1 1 . 1 . . . . . . . Recycling Units 16 | . 2 . . . 1 . . 1 1 4 1 . 2 1 1 . . 2 Scanalyzers 8 | . . . . . 1 . . 1 . 2 1 . 1 . 1 1 . . Garrison Access 10 | . . . . . 1 . . . . 2 1 . 1 . 3 . . 2 Total Hacks 432 | . 29 1 1 . 34 14 . 19 32 28 32 34 74 37 51 27 . 19 Successful 348 | . 23 1 1 . 26 6 . 17 24 22 29 32 63 31 36 20 . 17 Failed 84 | . 6 . . . 8 8 . 2 8 6 3 2 11 6 15 7 . 2 Catastrophic 6 | . 2 . . . . 1 . . . . . . . . 1 2 . . Database Lockouts . | . . . . . . . . . . . . . . . . . . . Manual 206 | . 23 . 1 . 18 10 . 6 19 6 11 16 38 17 21 12 . 8 Terminals 335 | . 27 . . . 28 14 . 11 27 10 19 34 57 36 37 22 . 13 Fabricators 10 | . . . . . . . . . . 2 2 . 4 . 2 . . . Repair Stations 7 | . . . . . . . . 2 2 . 3 . . . . . . . Recycling Units 20 | . 2 . . . 1 . . 1 3 4 1 . 2 1 1 . . 4 Scanalyzers 40 | . . . . . 3 . . 5 . 7 5 . 9 . 6 5 . . Garrison Access 18 | . . . . . 2 . . . . 5 2 . 2 . 5 . . 2 Terminal Hacks 163 | . 10 1 1 . 9 2 . 5 13 3 11 24 35 19 15 9 . 6 Record 8 | . . . . . . . . . . . 1 . 2 2 1 1 . 1 Part Schematic 6 | . . . . . . . . . . 1 1 2 . 2 . . . . Robot Analysis 14 | . . . . . . . . . . . 1 . 8 . 2 3 . . Prototype ID Bank 10 | . 5 . . . . . . 1 . . 1 1 2 . . . . . Open Door 11 | . . 1 . . . . . . 3 . . 5 . 1 . . . 1 Open DSF 4 | . . . . . . 1 . 1 . . . . . . 1 1 . . Level Access Points 4 | . . . . . . . . . . . . 1 1 1 1 . . . Branch Access Points 8 | . 1 . . . . . . . 1 . 1 1 1 2 1 . . . Emergency Access Points 1 | . . . . . . . . . . . . . . 1 . . . . Machine Index 2 | . . . . . . . . . . . . 1 1 . . . . . Terminal Index 9 | . 1 . . . 2 . . . 1 . . 1 1 1 . 1 . 1 Fabricator Index 1 | . . . . . . . . . . . 1 . . . . . . . Garrison Index 3 | . . . . . . . . . . . . . 1 1 1 . . . Alert Level 16 | . . . . . 1 . . 1 2 1 1 2 3 2 1 2 . . Unreport Threat 18 | . . . . . 1 1 . . 3 . 2 2 2 3 2 1 . 1 Locate Traps 22 | . 1 . . . 4 . . . 2 1 1 3 4 2 3 . . 1 Disarm Traps 1 | . . . . . . . . . . . . 1 . . . . . . Reprogram Traps 1 | . . . . . . . . 1 . . . . . . . . . . Dispatch Records 1 | . . . . . . . . 1 . . . . . . . . . . Security Status 1 | . . . . . 1 . . . . . . . . . . . . . Surveillance Status 2 | . . . . . . . . . . . . 1 1 . . . . . Patrol Status 3 | . 1 . . . . . . . . . . 1 1 . . . . . Transport Status 1 | . . . . . . . . . . . . . 1 . . . . . Recall Investigation 1 | . . . . . . . . . . . 1 . . . . . . . Recall Extermination 4 | . . . . . . . . . . . . . 1 1 2 . . . Recall Reinforcements 2 | . . . . . . . . . . . . 1 . . . . . 1 Hauler Manifests 1 | . . . . . . . . . . . . . 1 . . . . . Registered Components 2 | . 1 . . . . . . . . . . . 1 . . . . . Registered Prototypes 3 | . . . . . . . . . 1 . . 1 1 . . . . . Zone Layout 2 | . . . . . . . . . . . . . 2 . . . . . EX-Prototype ID Bank 1 | . . . 1 . . . . . . . . . . . . . . . Fabricator Hacks 10 | . . . . . . . . . . 2 2 . 4 . 2 . . . Load Schematic 5 | . . . . . . . . . . 1 1 . 2 . 1 . . . Build 5 | . . . . . . . . . . 1 1 . 2 . 1 . . . Repair Station Hacks 7 | . . . . . . . . 2 2 . 3 . . . . . . . Scan Component 4 | . . . . . . . . 1 1 . 2 . . . . . . . Repair 3 | . . . . . . . . 1 1 . 1 . . . . . . . Recycling Unit Hacks 19 | . 2 . . . 1 . . 1 2 4 1 . 2 1 1 . . 4 Report Inventory 17 | . 2 . . . 1 . . 1 1 4 1 . 2 1 1 . . 3 Retrieve Matter 1 | . . . . . . . . . . . . . . . . . . 1 Retrieve Components 1 | . . . . . . . . . 1 . . . . . . . . . Scanalyzer 39 | . . . . . 3 . . 5 . 7 5 . 9 . 6 4 . . Insert Component 18 | . . . . . 2 . . 2 . 3 3 . 4 . 2 2 . . Analyze 21 | . . . . . 1 . . 3 . 4 2 . 5 . 4 2 . . Garrison Access Hacks 12 | . . . . . 1 . . . . 4 1 . 1 . 3 . . 2 Seal Access 10 | . . . . . 1 . . . . 2 1 . 1 . 3 . . 2 Coupler Status 2 | . . . . . . . . . . 2 . . . . . . . . Unauthorized Hacks 98 | . 11 . . . 12 4 . 4 7 2 6 8 12 11 9 7 . 5 Terminals 98 | . 11 . . . 12 4 . 4 7 2 6 8 12 11 9 7 . 5 Track 18 | . 3 . . . 3 . . 1 1 . 1 . 3 2 2 1 . 1 Assimilate 15 | . . . . . 1 1 . 1 . 1 2 1 1 3 1 2 . 1 Botnet 63 | . 6 . . . 8 3 . 2 6 1 3 7 8 6 6 4 . 3 Disrupt 1 | . 1 . . . . . . . . . . . . . . . . . Operators 1 | . 1 . . . . . . . . . . . . . . . . . Fabricators . | . . . . . . . . . . . . . . . . . . . Repair Stations . | . . . . . . . . . . . . . . . . . . . Recycling Units . | . . . . . . . . . . . . . . . . . . . Scanalyzers . | . . . . . . . . . . . . . . . . . . . Garrison Access . | . . . . . . . . . . . . . . . . . . . Data Cores Recovered 1 | . . . . . . . . 1 . . . . . . . . . . Used . | . . . . . . . . . . . . . . . . . . . Hacking Detections 94 | . 5 . . . 9 8 . 5 9 8 8 7 9 6 11 5 . 4 Full Trace Events 18 | . 1 . . . 1 . . 2 1 3 4 . 2 . 2 2 . . Feedback Events . | . . . . . . . . . . . . . . . . . . . Feedback Blocked . | . . . . . . . . . . . . . . . . . . . Robot Schematics Acquired . | . . . . . . . . . . . . . . . . . . . Robots Built . | . . . . . . . . . . . . . . . . . . . Authchips . | . . . . . . . . . . . . . . . . . . . Time . | . . . . . . . . . . . . . . . . . . . Total Robot Build Rating . | . . . . . . . . . . . . . . . . . . . Part Schematics Acquired 21 | . . . . . 1 . . 2 . 4 3 2 4 2 2 1 . . Parts Built 8 | . . . . . . . . . . 2 1 . 4 . 1 . . . Authchips . | . . . . . . . . . . . . . . . . . . . Time 446 | . . . . . . . . . . 95 106 . 192 . 53 . . . Total Part Build Rating 54 | . . . . . . . . . . 10 6 . 32 . 6 . . . Parts Repaired 3 | . . . . . . . . 1 1 . 1 . . . . . . . Time 131 | . . . . . . . . 56 50 . 25 . . . . . . . Parts Recycled . | . . . . . . . . . . . . . . . . . . . Recycled Matter . | . . . . . . . . . . . . . . . . . . . Retrieved Matter . | . . . . . . . . . . . . . . . . . . . Retrieved Components 2 | . . . . . . . . . 2 . . . . . . . . . Parts Scanalyzed 15 | . . . . . 1 . . 2 . 3 2 . 4 . 2 1 . . Part Schematics Acquired 15 | . . . . . 1 . . 2 . 3 2 . 4 . 2 1 . . Parts Damaged 1 | . . . . . . . . . . . 1 . . . . . . . Bothacking | -11 -10 -10 -10 -9 -8 -7 -7 -7 -7 -6 -5 -5 -4 -4 -3 -2 -2 -1 ------------ Run | Jun Mat Min Exi Min Mat Fac Was Fac Sto Fac Fac Ext Fac Arm Res Res DSF Acc Used RIF Installer . | . . . . . . . . . . . . . . . . . . . Robots Hacked 24 | . . . . . . 1 . 2 . 3 . 3 1 . 7 . . 7 Non-combat 24 | . . . . . . 1 . 2 . 3 . 3 1 . 7 . . 7 Combat . | . . . . . . . . . . . . . . . . . . . Robot Hacks Applied 27 | . . . . . . 1 . 4 . 3 . 3 1 . 8 . . 7 no_distress 16 | . . . . . . . . 3 . 2 . 3 . . 3 . . 5 find_chute 2 | . . . . . . . . . . 1 . . 1 . . . . . find_fabricator 4 | . . . . . . . . 1 . . . . . . 2 . . 1 find_recycling 3 | . . . . . . . . . . . . . . . 2 . . 1 check_alert 2 | . . . . . . 1 . . . . . . . . 1 . . . Relay Couplers Released 2 | . . . . . 2 . . . . . . . . . . . . . Machine Destruction 2 | . . . . . 2 . . . . . . . . . . . . . Fabnet Peak Effective % . | . . . . . . . . . . . . . . . . . . . Robots Rewired 20 | . . . . . . . . . 2 . . 14 . 4 . . . . Allies Hacked 1 | . . . . . . . . . . . . 1 . . . . . . Hacks Repelled . | . . . . . . . . . . . . . . . . . . . Allies | -11 -10 -10 -10 -9 -8 -7 -7 -7 -7 -6 -5 -5 -4 -4 -3 -2 -2 -1 -------- Run | Jun Mat Min Exi Min Mat Fac Was Fac Sto Fac Fac Ext Fac Arm Res Res DSF Acc Total Allies 70 | . . . . . 1 4 20 1 10 . 4 21 1 5 1 1 . 1 Largest Group 20 | . . . . . 1 2 20 20 12 . 1 10 5 4 1 1 . 1 Highest-Rated Group 517 | . . . . . 10 45 517 514 243 . 26 297 266 172 10 45 . 45 Highest-Rated Ally 159 | . . . . . 10 29 35 35 35 . 26 159 159 65 10 45 . 45 Total Orders 9 | . . . . . 1 . . . 1 . 1 2 1 . 1 1 . 1 STAY 7 | . . . . . 1 . . . 1 . 1 . 1 . 1 1 . 1 GUARD 1 | . . . . . . . . . . . . 1 . . . . . . AID 1 | . . . . . . . . . . . . 1 . . . . . . Ally Attacks 363 | . . . . . . 26 . 90 109 . 5 86 36 11 . . . . Total Damage 8077 | . . . . . . 390 . 2538 2076 . 46 1913 820 294 . . . . Kills 63 | . . . . . . 3 . 22 21 . . 9 7 1 . . . . Allies Corrupted 2 | . . . . . . . . . . . . 2 . . . . . . Allies Melted . | . . . . . . . . . . . . . . . . . . . Field Lobotomies 5 | . . . . . . 3 . . . . 2 . . . . . . . Intel | -11 -10 -10 -10 -9 -8 -7 -7 -7 -7 -6 -5 -5 -4 -4 -3 -2 -2 -1 ------- Run | Jun Mat Min Exi Min Mat Fac Was Fac Sto Fac Fac Ext Fac Arm Res Res DSF Acc Robot Analysis Total 14 | . . . . . . . . . . . 1 . 8 . 2 3 . . Derelict Logs Recovered 5 | . . 2 . 3 . . . . . . . . . . . . . . Drone Launches . | . . . . . . . . . . . . . . . . . . . Drone Recoveries . | . . . . . . . . . . . . . . . . . . . Exploration | -11 -10 -10 -10 -9 -8 -7 -7 -7 -7 -6 -5 -5 -4 -4 -3 -2 -2 -1 ------------- Run | Jun Mat Min Exi Min Mat Fac Was Fac Sto Fac Fac Ext Fac Arm Res Res DSF Acc Turns Passed 14539 | 25 617 161 78 114 1377 859 194 577 422 1135 745 846 1512 1795 1913 432 51 1686 Spaces Moved 24655 | 18 459 363 263 344 1558 1747 352 1158 805 2431 1529 1335 2698 2886 3013 875 95 2726 Core . | . . . . . . . . . . . . . . . . . . . Treads . | . . . . . . . . . . . . . . . . . . . Legs 1 | 1 . . . . . . . . . . . . . . . . . . Wheels 39 | 17 22 . . . . . . . . . . . . . . . . . Hover . | . . . . . . . . . . . . . . . . . . . Flight 24615 | . 437 363 263 344 1558 1747 352 1158 805 2431 1529 1335 2698 2886 3013 875 95 2726 Fastest Speed 26 | 80 32 29 29 26 26 29 34 29 28 28 28 32 28 29 29 29 29 27 Average Speed 31 | 91 109 29 29 26 28 32 34 32 28 28 31 32 29 29 30 29 29 27 Slowest Speed 120 | 120 120 112 29 29 31 101 34 34 29 28 34 32 32 29 31 31 29 30 Overloaded Moves . | . . . . . . . . . . . . . . . . . . . Propulsion Burnouts . | . . . . . . . . . . . . . . . . . . . Robots Hopped 95 | . . 5 . 2 3 10 . 4 2 13 8 6 4 1 21 7 . 9 Cave-ins Triggered 1 | . . . . . . . . . . . 1 . . . . . . . Exploration Rate (%) 56 | 2 83 73 68 73 69 25 90 20 89 43 31 85 47 85 51 17 82 40 Regions Visited 18 Branch Regions 6 Pre-discovered Areas . | . . . . . . . . . . . . . . . . . . . Known Exits Taken 14 | . 1 1 1 1 1 . . 1 1 1 1 1 1 1 1 1 . . Unknown Exits Taken 1 | 1 . . . . . . . . . . . . . . . . . . Scrap Searched 2 | . . 1 . 1 . . . . . . . . . . . . . . Spaces Dug 386 | . . . . . 36 . . 14 16 40 22 2 61 48 55 26 . 66 Terrain Destroyed 418 | . 18 4 . . 36 . . 14 16 41 22 9 62 48 56 26 . 66 Melee 382 | . . . . . 36 . . 14 16 40 22 2 61 46 53 26 . 66 Projectile 14 | . . . . . . . . . . 1 . 7 1 2 3 . . . AOE 22 | . 18 4 . . . . . . . . . . . . . . . . Terrain Rammed . | . . . . . . . . . . . . . . . . . . . Walls Destroyed . | . . . . . . . . . . . . . . . . . . . Machines Disabled . | . . . . . . . . . . . . . . . . . . . Actions | -11 -10 -10 -10 -9 -8 -7 -7 -7 -7 -6 -5 -5 -4 -4 -3 -2 -2 -1 --------- Run | Jun Mat Min Exi Min Mat Fac Was Fac Sto Fac Fac Ext Fac Arm Res Res DSF Acc Total 30082 | 26 542 399 264 357 2306 1978 421 1318 955 2788 1720 1674 3251 3641 3846 983 116 3497 Wait 3542 | . 36 16 . 4 589 127 43 76 86 248 102 139 324 504 601 62 . 585 Move 24454 | 17 458 352 262 339 1551 1728 351 1151 800 2404 1512 1322 2690 2883 2973 860 94 2707 Hop 88 | . . 5 . 2 3 9 . 2 2 13 8 6 3 1 18 7 . 9 Pick Up 93 | 4 4 4 1 2 11 15 3 3 3 5 7 5 5 5 8 1 . 7 Fast Attach 105 | 3 6 1 . . 5 13 2 2 4 9 10 2 4 13 20 1 2 8 Attach 21 | . 1 1 . 2 3 2 . . 1 1 2 1 . 2 2 1 . 2 Detach 20 | 1 1 . . . 1 5 . . 2 2 1 . 1 4 1 1 . . Swap 146 | . 2 . . . 11 7 1 5 2 16 14 27 15 17 10 7 1 11 Drop 191 | 1 9 4 1 1 17 25 5 5 6 15 15 9 14 13 28 3 1 19 Fire 170 | . 15 8 . 4 1 31 3 4 . 5 4 23 11 28 14 7 . 12 Melee 701 | . . . . . 92 5 . 21 29 49 34 38 108 103 93 31 . 98 Ram . | . . . . . . . . . . . . . . . . . . . Kick . | . . . . . . . . . . . . . . . . . . . Crush . | . . . . . . . . . . . . . . . . . . . Escape Stasis 44 | . . . . . . . . . . . . 34 . . . . 10 . Rewire . | . . . . . . . . . . . . . . . . . . . Trap 295 | . . . . . . . . 46 12 21 4 27 40 42 62 2 8 31 Miscellaneous 212 | . 10 8 . 3 22 11 13 3 8 . 7 41 36 26 16 . . 8 Route ------- -11/Junkyard -10/Materials (discovered 4 exits: *Mat x2 / *Min x2) -10/Mines (discovered 3 exits: *Mat x2 / *Exi) -10/Exiles -9/Mines (discovered 2 exits: *Mat x2) -8/Materials (discovered 3 exits: *Fac x3) -7/Factory (discovered 2 exits: Sto / [*Low]) -7/Waste -7/Factory (discovered 3 exits: *Fac x2 / *Sto) -7/Storage (discovered 2 exits: *Fac / Rec) -6/Factory -5/Factory (discovered 4 exits: *Upp x2 / *Ext x2) -5/Extension (discovered 3 exits: *Fac x2 / *Cet) -4/Factory (discovered 7 exits: *Res x4 / *Upp x2 / *Arm) -4/Armory (discovered 2 exits: *Res x2) -3/Research (discovered 5 exits: *Res x3 / *Tes x2) -2/Research -2/DSF -1/Access To Epsilon Eridani History --------- Turn | Location | Event 1 | -11/Junkyard | Discovered new exit (range 1) 3 | -11/Junkyard | Upgraded with Propulsion slot (x1) 3 | -11/Junkyard | Upgraded with Utility slot (x1) 3 | -11/Junkyard | Upgraded with Weapon slot (x1) 26 | -11/Junkyard | Entered Materials 93 | -10/Materials | Identified exit to Mines 206 | -10/Materials | Discovered new exit (range 16) 304 | -10/Materials | Build established: Mutant 447 | -10/Materials | Discovered new exit (range 7) 599 | -10/Materials | Identified exit to Materials 643 | -10/Materials | Entered Mines 645 | -10/Mines | Reached level 2 645 | -10/Mines | Upgraded with Propulsion slot (x1) 647 | -10/Mines | Joined a pair of Derelicts in attacking an 0b10 outpost 684 | -10/Mines | Assembled infested the area 702 | -10/Mines | Discovered exit to Materials (range 9) 705 | -10/Mines | Learned 2 Materials zone layouts 724 | -10/Mines | Discovered exit to Materials (range 5) 772 | -10/Mines | Learned Materials trap positions 783 | -10/Mines | YI-UF0 nonchalantly dropped a Grenade Launcher on the ground 798 | -10/Mines | Met a Derelict shopkeep closing up shop 803 | -10/Mines | Deemed a non-threat by the Exiles lab entrance 803 | -10/Mines | Discovered new exit (range 5) 804 | -10/Mines | Identified exit to Exiles 804 | -10/Mines | Entered Exiles 811 | -10/Exiles | Met 8R-AWN 817 | -10/Exiles | Met EX-HEX 826 | -10/Exiles | Met EX-BIN 829 | -10/Exiles | Aligned with FarCom system 830 | -10/Exiles | Given EX-Vault access code 842 | -10/Exiles | Opened EX-Vault 845 | -10/Exiles | Found Field Lobotomy Kit 852 | -10/Exiles | Warned to stay clear of 0b10 Research branches 861 | -10/Exiles | Met EX-DEC 880 | -10/Exiles | Discovered new exit (range 10) 882 | -10/Exiles | Identified exit to Mines 882 | -10/Exiles | Left Exiles lab with Field Lobotomy Kit 882 | -10/Exiles | Entered Mines 889 | -9/Mines | Reached level 3 905 | -9/Mines | Upgraded with Propulsion slot (x1) 907 | -9/Mines | Met a Derelict bent on vengeance 917 | -9/Mines | Found a hidden stash of uninstalled traps 943 | -9/Mines | Discovered new exit (range 7) 944 | -9/Mines | Identified exit to Materials 968 | -9/Mines | Discovered exit to Materials (range 5) 978 | -9/Mines | Learned Materials stockpile data 996 | -9/Mines | Entered Materials 997 | -8/Materials | Identified exit to Factory 998 | -8/Materials | Reached level 4 998 | -8/Materials | Reached level 5 998 | -8/Materials | Reached level 6 998 | -8/Materials | Upgraded with Utility slot (x3) 999 | -8/Materials | Loaded intel: 17 trap records 1165 | -8/Materials | Discovered exit to Factory (range 14) 1207 | -8/Materials | Build established: Sprinter 1734 | -8/Materials | Reached level 7 1749 | -8/Materials | Upgraded with Utility slot (x1) 2211 | -8/Materials | Discovered exit to Factory (range 18) 2338 | -8/Materials | Reached level 8 2356 | -8/Materials | Upgraded with Utility slot (x1) 2373 | -8/Materials | Entered Factory 2374 | -7/Factory | Identified exit to Storage 2375 | -7/Factory | Reached level 9 2752 | -7/Factory | Build established: Hacker-Mutant 2786 | -7/Factory | Reached level 10 2861 | -7/Factory | Assimilated G-47 Trooper with FLK Orb 2864 | -7/Factory | Assimilated G-50 Soldier with FLK Orb 2905 | -7/Factory | Assimilated G-47 Trooper with FLK Orb 2945 | -7/Factory | Discovered new exit (range 10) 3232 | -7/Factory | Sucked down chute 3232 | -7/Factory | Entered Waste 3233 | -7/Waste | Joined by Warlord forces that had cleared the area 3264 | -7/Waste | Discovered new exit (range 17) 3287 | -7/Waste | Build established: Hacker-Scout 3426 | -7/Waste | Entered Factory 3426 | -7/Factory | Accompanied by 19 allies 3542 | -7/Factory | Identified exit to DSF 3632 | -7/Factory | Discovered exit to Storage (range 10) 3734 | -7/Factory | Reached level 11 3817 | -7/Factory | Repaired KE Penetrator 3853 | -7/Factory | Discovered new exit (range 15) 3886 | -7/Factory | Build established: Hacker-Ninja 3932 | -7/Factory | Reached level 12 3940 | -7/Factory | Discovered new exit (range 8) 4003 | -7/Factory | Entered Storage 4003 | -7/Storage | Accompanied by 4 allies 4005 | -7/Storage | Reached level 13 4112 | -7/Storage | Assisted by bots powering up and referring to "LRC-V3" 4123 | -7/Storage | Reached level 14 4153 | -7/Storage | Identified exit to Recycling 4197 | -7/Storage | Garrison activated, responded to threat 4243 | -7/Storage | Repaired Nuclear Pulse Thruster 4286 | -7/Storage | Discovered new exit (range 15) 4363 | -7/Storage | Reached level 15 4383 | -7/Storage | Identified exit to Factory 4425 | -7/Storage | Entered Factory 4427 | -6/Factory | Reached level 16 4506 | -6/Factory | Build established: Hacker-Sprinter 4824 | -6/Factory | Fabricated Cmb. Airjet? 4824 | -6/Factory | Build established: Hacker-Ninja 5494 | -6/Factory | Discovered new exit (range 7) 5517 | -6/Factory | Identified exit to Factory 5560 | -6/Factory | Entered another Factory area 5562 | -5/Factory | Reached level 17 5562 | -5/Factory | Upgraded with Power slot (x1) 5569 | -5/Factory | Crushed by falling debris 5727 | -5/Factory | Repaired Adv. Terrain Scanner 5817 | -5/Factory | Identified exit to Upper Caves 5817 | -5/Factory | Identified exit to Extension 6052 | -5/Factory | Fabricated Adv. Hacking Suite? 6209 | -5/Factory | Assimilated S-27 Virus with FLK Orb 6212 | -5/Factory | Assimilated S-27 Virus with FLK Orb 6305 | -5/Factory | Entered Extension 6307 | -5/Extension | Reached level 18 6402 | -5/Extension | Rescued a captive Derelict 6416 | -5/Extension | Identified exit to Cetus 6416 | -5/Extension | Identified exit to Factory 6417 | -5/Extension | Rescued a captive Derelict 6418 | -5/Extension | Rescued a captive Derelict 6468 | -5/Extension | Core integrity fell below 50% 6550 | -5/Extension | Reached level 19 6564 | -5/Extension | Spotted B-75 Beast 6590 | -5/Extension | Spotted B-75 Beast 6864 | -5/Extension | Rescued a captive Derelict 6969 | -5/Extension | Rescued a captive Derelict 6970 | -5/Extension | Rescued a captive Derelict 6998 | -5/Extension | Rescued A7 7068 | -5/Extension | Build established: Wizard-Sprinter 7118 | -5/Extension | Reached level 20 7130 | -5/Extension | Upgraded with Weapon slot (x1) 7151 | -5/Extension | Entered Factory 7151 | -4/Factory | Accompanied by 5 allies (A7) 7153 | -4/Factory | Reached level 21 7154 | -4/Factory | Upgraded with Propulsion slot (x1) 7277 | -4/Factory | Fabricated Q-thruster (x2) 7435 | -4/Factory | Fabricated Q-thruster? 7657 | -4/Factory | Discovered new exit (range 5) 7658 | -4/Factory | Identified exit to Research 7688 | -4/Factory | Discovered new exit (range 10) 7690 | -4/Factory | Identified exit to Upper Caves 7736 | -4/Factory | Identified exit to Armory 7862 | -4/Factory | Spotted B-86 Titan 7901 | -4/Factory | Reached level 22 8663 | -4/Factory | Entered Armory 8665 | -4/Armory | Reached level 23 8796 | -4/Armory | Found Prototype Processor 8796 | -4/Armory | Identified Exp. Signal Interpreter 9458 | -4/Armory | Found Exp. Signal Interpreter 9502 | -4/Armory | Reached level 24 10341 | -4/Armory | Discovered exit to Research (range 4) 10458 | -4/Armory | Entered Research 10460 | -3/Research | Reached level 25 10479 | -3/Research | Identified exit to DSF 10694 | -3/Research | Identified exit to Research 10778 | -3/Research | Reached level 26 11080 | -3/Research | Build established: Wizard-Ninja 11215 | -3/Research | Identified exit to Testing 11223 | -3/Research | Found Prototype Hackware 11223 | -3/Research | Identified Exp. System Shield 11257 | -3/Research | Found Prototype Device 11257 | -3/Research | Identified Exp. Terrain Scanner 11846 | -3/Research | Spotted B-86 Titan 11976 | -3/Research | Fabricated Adv. Hacking Suite? 12371 | -3/Research | Entered another Research area 12373 | -2/Research | Reached level 27 12706 | -2/Research | Spotted B-90 Cyclops 12802 | -2/Research | Identified exit to DSF 12803 | -2/Research | Entered DSF 12805 | -2/DSF | Reached level 28 12830 | -2/DSF | Core integrity fell below 50% 12835 | -2/DSF | Additional patrols routed to DSF 12842 | -2/DSF | Discovered new exit (range 11) 12854 | -2/DSF | Entered Access 12855 | -1/Access | Core integrity fell below 50% 12856 | -1/Access | Reached level 29 12881 | -1/Access | Reached level 30 12881 | -1/Access | Upgraded with Utility slot (x1) 13243 | -1/Access | Found Prototype Device 13243 | -1/Access | Identified Beam Splitter 13248 | -1/Access | Found Beam Splitter 13997 | -1/Access | Spotted B-99 Colossus 14128 | -1/Access | Spotted B-99 Colossus 14539 | -1/Access | Discovered new exit (range 6) 14540 | *** | Escaped! Last Messages --------------- 14433_ R-10 Processor collects Imp. Antigrav System. 14436_ R-10 Processor collects Sml. Battery. 14438_ NN2<>GDZAU,2S9CQ|3Y3I0EC 14459_ System corrupted: Matter fused (-6). 14464_ Used Protomatter to restore core integrity (+177, depleted) 14478_ ALERT: Suspicious intruders detected, dispatching Cutter reinforcements to area. 14487_ System corrupted: Component data lost. 14495_ U-05 Engineer builds a Wall. 14510_ ALERT: Suspicious intruders detected, dispatching Cutter reinforcements to area. 14523_ System corrupted: Component data lost. 14527_ U-05 Engineer builds a Wall. 14535_ W-44 Eye distress signal alerts nearby ally. 14538_ Connecting with Terminal... >>Open(Door) Sealed Barrier opened. 14538_ U-05 Engineer builds a Wall. 14539_ The Access Shell folds into the floor. 14539_ EXIT=FOUND Map ----- +----------------------------------------------------+ | ?????????????????????????# ## " | | ???????????????????#?#???# ## == | | ??????????????????????########+###### == " | | ??????????????????????# = " | | ??????????????????????# | | ??????????????????#?#?# = | | ??????????????????????# | | ??????????????????????# ###########+###### ##? | | ???????????????????#??# ?????# #???## | | ??????????????????????# ??????# ###### | | ???????????????????? ???????# """""" ###### | | ????? ???????? ??#?# ?????#* """""" ##!! | | ???????????????????# ? ? ? #?# """""" ##!! | | ???????????????????# ?????????# """""" ## | | ??????????? ???????# BB????BB ??# """""" ## | | ???????????????????#?BB????BB??## ###### | | ?????????? ????##??? ?????????# # ! | | ?????? ?? ???????#??????????????# # | | ?????? ????? ???????????""??????# # " | | ?????????????????????????????"?## # "" | | ??????????????????##""""""""""### # """ | | ???????????????????# ############### " | | ???????#? ?????????# #####????####?# | | ??????????????##???# #????#????##??# | | ???????? ??????????# "" #??????##?#??## | | ???????? ??? ?????## "@ ##################+# | | ????????????????#??# ##" # | | ???????????????????# ### + "" | | ???????????????????# #?# """"" # T" | | ??????????????????## ###"""""""" # | | ?????? ????? #??#?# ##"""""""" #? # | | ??????????????????##"" ### """"" #?? # | | ???????????????????#"" #?# ##??# | | ????? ????????#??##"" #?# #???# | | ??????????????#????#T #?# * """Y""" ##??# | | ?????? ??????????#?#"" #?# """"""" #?? # | | ??????? ???????????#"" #?##############?? # | | ????? ????????#####"" ###############?? | | ??? ??????#? wChh RR c H???? | | ???????????? uu ? | | ?????????????#+###########################+### ?? | | ??????????????? ???#???????## # ##+## | | ????????????????????????????###### # | | ??????????????????????????#??????# # | | ?????????????????????#????????#??# # | | ?????????????????????????????????# # | | ??#???????????? ?????#??????#????# # " | | ????????????????????#????????????# "" # | | ???????????????????????#???#???#?# """ # | | ???????????????????????#????#?#??# "R # | +----------------------------------------------------+ Best States ------------- Heat Dissipation 73 Energy Generation 60 Energy Capacity 540 Matter Stores 400 Matter Capacity 400 Sight Range 21 Robot Scan Range 20 Terrain Scan Range 30 Terrain Scan Density 10 ECM Strength 2 Jamming Range 14 Cloak Strength 3 Additional Mass Support 9 Armor Coverage 225 Resistance: KI 35 Resistance: TH 35 Resistance: EX 40 Resistance: EM 20 Resistance: I 20 Resistance: S 20 Resistance: P 20 Propulsion Shielding 66 Phase Shifting 10 Evasion (%) 86 Targeting Accuracy 8 Melee Accuracy 5 Target Analysis 5 Offensive Hacking 54 Defensive Hacking 26 Item Schematics ----------------- Adv. Weight Redist. System | -8/Materials | Scanalyzed Adv. Hacking Suite | -7/Factory | Scanalyzed KE Penetrator | -7/Factory | Scanalyzed Enh. Force Rifle | -6/Factory | Scanalyzed Cmb. Airjet | -6/Factory | Hacked Imp. Trap Scanner | -6/Factory | Scanalyzed Adv. Heat Sink | -6/Factory | Scanalyzed Adv. Datajack | -5/Factory | Hacked Cloaking Device | -5/Factory | Scanalyzed Imp. Reaction Control System | -5/Factory | Scanalyzed Q-thruster | -5/Extension | Hacked Adv. Trap Extractor | -5/Extension | Hacked Imp. Cloaking Device | -4/Factory | Scanalyzed Imp. Phase Shifter | -4/Factory | Scanalyzed Adv. Reaction Control System | -4/Factory | Scanalyzed Exp. Heat Sink | -4/Factory | Scanalyzed Adv. Cloaking Device | -4/Armory | Hacked Mic. Antimatter Reactor | -4/Armory | Hacked Imp. KE Penetrator | -3/Research | Scanalyzed Exp. Terrain Scanner | -3/Research | Scanalyzed Triangulator | -2/Research | Scanalyzed Robot Schematics ------------------ None Fabricated ------------ Cmb. Airjet | x2 | -6/Factory Adv. Hacking Suite | x1 | -5/Factory Q-thruster | x2 | -4/Factory Q-thruster | x2 | -4/Factory Adv. Hacking Suite | x1 | -3/Research Alien Tech Used ----------------- None Achievements -------------- Cya! Hehehe Maximum Efficiency Challenges ------------ None RPGLIKE | -11 -10 -10 -10 -9 -8 -7 -7 -7 -7 -6 -5 -5 -4 -4 -3 -2 -2 -1 --------- Run | Jun Mat Min Exi Min Mat Fac Was Fac Sto Fac Fac Ext Fac Arm Res Res DSF Acc Levels Raised 29 | . . 1 . 1 5 2 . 2 3 1 1 3 2 2 2 1 1 2 XP Earned 48495 | 4000 1010 750 350 1333 7172 3590 200 3022 3589 1950 1935 3721 4015 2506 2847 2210 1250 3045 XP Spent 47405 | 4000 . 1500 . 1470 7000 3500 . 3025 2965 2750 1775 4450 3035 2975 3000 1500 1525 2935 Upgrades 88 | 7 . 3 . 7 5 5 . 12 6 2 3 14 5 6 5 2 3 3 Power Slot 1 | . . . . . . . . . . . 1 . . . . . . . Propulsion Slot 4 | 1 . 1 . 1 . . . . . . . . 1 . . . . . Utility Slot 7 | 1 . . . . 5 . . . . . . . . . . . . 1 Weapon Slot 2 | 1 . . . . . . . . . . . 1 . . . . . . Core Integrity 12 | . . . . 1 . . . 3 1 . 1 4 . 1 . . . 1 Heat Dissipation 4 | . . . . 2 . . . 1 . . . . 1 . . . . . Energy Generation 5 | . . . . . . . . 2 1 . . . . . 1 1 . . Energy Storage 2 | . . . . . . . . 1 . . . 1 . . . . . . Matter Storage 2 | . . . . . . . . . . . . 2 . . . . . . Mass Support 3 | . . 2 . . . . . . . . . . . 1 . . . . Inventory Capacity 7 | 4 . . . . . 2 . . . 1 . . . . . . . . Sight Range 1 | . . . . . . . . 1 . . . . . . . . . . Sensor Range 6 | . . . . 3 . . . . . . . . 1 . 1 . 1 . Ranged Accuracy 8 | . . . . . . . . 2 1 . . 2 1 1 1 . . . Melee Accuracy 3 | . . . . . . . . . . . . . . 2 1 . . . Hack Attack % 6 | . . . . . . 2 . 1 1 1 1 . . . . . . . Hack Defense % 2 | . . . . . . . . . . . . . . . . 1 . 1 KI Resistance % 3 | . . . . . . 1 . . 1 . . 1 . . . . . . TH Resistance % 3 | . . . . . . . . 1 1 . . . . . . . 1 . EX Resistance % 4 | . . . . . . . . . . . . 2 . 1 1 . . . KI Damage % 3 | . . . . . . . . . . . . 1 1 . . . 1 . Protomatter Created 1478 | . 74 43 . 31 178 38 . . 9 . 34 111 373 358 170 . . 59 Integrity Restored 4175 | . 179 127 . 45 459 162 273 60 156 . 144 845 750 455 343 . . 177 Core 3219 | . 140 88 . 35 456 97 28 . 121 . 144 684 579 352 318 . . 177 Parts 956 | . 39 39 . 10 3 65 245 60 35 . . 161 171 103 25 . . . Protomatter Decayed 1681 | . 11 61 . 15 25 67 94 96 166 . . 334 435 322 55 . . . Game ------ Seed CarbideMiningRecalibrator Manual? 0 Play Time 06:52:28 Cumulative 82.0 hours Start 2023.10.09 @ 12:07:04 End 2023.10.11 @ 21:13:07 Sessions 13 Manual Loads 0 Difficulty Adventurer Special Mode Winter2019/RPGLIKE Game No. 36 Rogue 25 Adventurer 11 Explorer 0 Win Type 0 Total 3 Types 3/0/0/0/0/0/0/0/0 Lore% 48 Gallery% 59 Achievement% 47 Wizard Run 0 Options --------- ASCII 0 Keyboard 1 Movement Vi Keybinds 0 Fullscreen 2 Font 18/Terminus Map View 76x50 Tactical HUD 1 Map Filters NONE Filters NONE Steam X RUN: 4bdde918-7035-471f-b88d-ed61d8652176